fUSD/lending_fUSD_20251120
["ID","MTS","AMOUNT","RATE_DAILY","PERIOD"]
[394500106,1763638238466,-151.0,0.00016876,2]
[394500108,1763638238476,-9091.46914528,0.00016881,2]
[394500110,1763638238485,-288.0,0.00016882,2]
[394500111,1763638238495,-1019.34,0.00016885,2]
[394500112,1763638238505,-1159.371,0.00016885,2]
[394500113,1763638238515,-150.0,0.00016885,2]
[394500114,1763638238525,-200.0,0.00016885,2]
[394500115,1763638238534,-150.0,0.00016885,2]
[394500116,1763638238544,-150.0,0.00016885,2]
[394500117,1763638238554,-241.57895725,0.00016885,2]
[394500118,1763638238564,-150.0,0.00016885,2]
[394500119,1763638238573,-500.0,0.00016886,2]
[394500120,1763638238582,-500.0,0.00016886,2]
[394500121,1763638238592,-500.0,0.00016886,2]
[394500122,1763638238602,-500.0,0.00016886,2]
[394500123,1763638238612,-500.0,0.00016886,2]
[394500124,1763638238622,-500.0,0.00016886,2]
[394500125,1763638238632,-500.0,0.00016886,2]
[394500126,1763638238642,-500.0,0.00016886,2]
[394500127,1763638238652,-500.0,0.00016886,2]
[394500128,1763638238661,-500.0,0.00016886,2]
[394500129,1763638238671,-500.0,0.00016886,2]
[394500130,1763638238680,-399.96203519,0.00016886,2]
[394500131,1763638238690,-500.0,0.00016886,2]
[394500132,1763638238699,-500.0,0.00016886,2]
[394500133,1763638238709,-500.0,0.00016886,2]
[394500134,1763638238722,-500.0,0.00016886,2]
[394500135,1763638238731,-521.98681093,0.00016886,2]
[394500136,1763638238741,-500.0,0.00016886,2]
[394500137,1763638238751,-330.4161979,0.00016886,2]
[394500138,1763638238767,-500.0,0.00016886,2]
[394500139,1763638238778,-500.0,0.00016886,2]
[394500140,1763638238787,-500.0,0.00016886,2]
[394500141,1763638238800,-500.0,0.00016886,2]
[394500142,1763638238810,-527.87918583,0.00016886,2]
[394500143,1763638238820,-556.04174665,0.00016886,2]
[394500144,1763638238831,-500.0,0.00016886,2]
[394500145,1763638238841,-500.0,0.00016886,2]
[394500146,1763638238852,-191.56918597,0.00016886,2]
[394500147,1763638238862,-150.0,0.00016886,2]
[394500148,1763638238872,-150.0,0.00016886,2]
[394500149,1763638238884,-150.0,0.00016886,2]
[394500150,1763638238895,-150.0,0.00016886,2]
[394500151,1763638238905,-315.08513889,0.00016886,2]
[394500152,1763638238915,-1203.28,0.00016886,2]
[394500153,1763638238925,-1203.28,0.00016886,2]
[394500154,1763638238934,-1203.28,0.00016886,2]
[394500155,1763638238944,-500.0,0.00016886,2]
[394500156,1763638238953,-33346.6032,0.00016886,2]
[394500157,1763638238963,-4786.48054024,0.00016886,2]
[394500158,1763638238972,-238.5557811,0.00016887,2]
[394500159,1763638238982,-9091.46914528,0.00016896,2]
[394500160,1763638238992,-151.0,0.00016897,2]
[394500161,1763638239002,-728.67789415,0.00016899,2]
[394500162,1763638239012,-500.0,0.00016899,2]
[394500163,1763638239023,-500.0,0.00016899,2]
[394500164,1763638239033,-500.0,0.00016899,2]
[394500165,1763638239043,-500.0,0.00016899,2]
[394500166,1763638239053,-175.04614911,0.00016899,2]
[394500167,1763638239063,-500.0,0.00016899,2]
[394500168,1763638239074,-500.0,0.00016899,2]
[394500169,1763638239084,-256.7612307,0.00016899,2]
[394500170,1763638239096,-500.0,0.00016899,2]
[394500171,1763638239116,-380.81289846,0.00016899,2]
[394500172,1763638239127,-500.0,0.00016899,2]
[394500173,1763638239136,-500.0,0.00016899,2]
[394500174,1763638239147,-500.0,0.00016899,2]
[394500175,1763638239157,-500.0,0.00016899,2]
[394500176,1763638239167,-500.0,0.00016899,2]
[394500177,1763638239177,-337262.37720059,0.000169,2]
[394500178,1763638239186,-238.5557811,0.00016908,2]
[394500179,1763638239197,-9091.46914528,0.00016912,2]
[394500180,1763638239207,-150.0,0.00016912,2]
[394500181,1763638239218,-150.0,0.00016913,2]
[394500182,1763638239228,-150.0,0.00016913,2]
[394500183,1763638239238,-877.15026966,0.00016921,2]
[394500184,1763638239249,-9999.99,0.00016922,2]
[394500185,1763638239259,-9999.99,0.00016922,2]
[394500186,1763638239269,-9999.99,0.00016922,2]
[394500187,1763638239279,-1170.42,0.00016922,2]
[394500188,1763638239290,-9999.99,0.00016922,2]
[394500189,1763638239299,-1536.98,0.00016922,2]
[394500190,1763638239309,-422.17,0.00016922,2]
[394500191,1763638239319,-9252.24,0.00016922,2]
[394500192,1763638239329,-2950.54,0.00016922,2]
[394500193,1763638239339,-38451.89,0.00016922,2]
[394500194,1763638239350,-7706.75,0.00016922,2]
[394500195,1763638239362,-56928.68,0.00016922,2]
[394500196,1763638239372,-2378.53,0.00016922,2]
[394500197,1763638239382,-5915.43,0.00016922,2]
[394500198,1763638239393,-7685.79,0.00016922,2]
[394500199,1763638239403,-499.99,0.00016922,2]
[394500200,1763638239412,-13873.05,0.00016922,2]
[394500201,1763638239422,-150.99,0.00016922,2]
[394500202,1763638239431,-999.99,0.00016922,2]
[394500203,1763638239441,-150.99,0.00016922,2]
[394500204,1763638239450,-9999.99,0.00016922,2]
[394500205,1763638239460,-1524.41,0.00016922,2]
[394500206,1763638239470,-496.15,0.00016922,2]
[394500207,1763638239480,-9091.46914528,0.00016928,2]
[394500208,1763638239489,-238.5557811,0.00016928,2]
[394500209,1763638239507,-181.67343782,0.00016928,2]
[394500210,1763638239517,-200.0,0.0001694,2]
[394500211,1763638239527,-200.0,0.00016941,2]
[394500212,1763638239536,-200.0,0.00016941,2]
[394500213,1763638239546,-37341.1630626,0.00016963,2]
[394500214,1763638239555,-15980.9242111,0.00016964,2]
[394500215,1763638239564,-2129.9071459,0.00016964,2]
[394500216,1763638239574,-500.0,0.00016973,2]
[394500217,1763638239583,-500.0,0.00016973,2]
[394500218,1763638239593,-503.69110106,0.00016973,2]
[394500219,1763638239604,-500.0,0.00016973,2]
[394500220,1763638239613,-500.0,0.00016973,2]
[394500221,1763638239624,-500.0,0.00016973,2]
[394500222,1763638239634,-363.04348691,0.00016973,2]
[394500223,1763638239644,-503.07135578,0.00016973,2]
[394500224,1763638239653,-500.0,0.00016973,2]
[394500225,1763638239662,-500.0,0.00016973,2]
[394500226,1763638239672,-500.0,0.00016973,2]
[394500227,1763638239681,-313.99370442,0.00016973,2]
[394500228,1763638239691,-500.0,0.00016973,2]
[394500229,1763638239701,-500.0,0.00016973,2]
[394500231,1763638239715,-500.0,0.00016973,2]
[394500233,1763638239724,-500.0,0.00016973,2]
[394500234,1763638239734,-500.0,0.00016973,2]
[394500235,1763638239744,-500.0,0.00016973,2]
[394500236,1763638239755,-500.0,0.00016973,2]
[394500238,1763638239765,-500.0,0.00016973,2]
[394500240,1763638239775,-500.60845142,0.00016973,2]
[394500242,1763638239785,-500.0,0.00016973,2]
[394500244,1763638239795,-572.12173873,0.00016973,2]
[394500246,1763638239805,-500.0,0.00016973,2]
[394500248,1763638239814,-501.04958789,0.00016973,2]
[394500249,1763638239824,-500.0,0.00016973,2]
[394500250,1763638239833,-500.0,0.00016973,2]
[394500251,1763638239842,-500.0,0.00016973,2]
[394500252,1763638239851,-500.0,0.00016973,2]
[394500253,1763638239861,-500.0,0.00016973,2]
[394500254,1763638239871,-500.0,0.00016973,2]
[394500255,1763638239881,-4666.060517,0.00016983,2]
[394500256,1763638239890,-74852.8127484,0.00016983,2]
[394500257,1763638239899,-3040.7649012,0.00016983,2]
[394500258,1763638239909,-500.0,0.00016986,2]
[394500259,1763638239918,-500.0,0.00016986,2]
[394500260,1763638239928,-500.0,0.00016986,2]
[394500261,1763638239937,-500.0,0.00016986,2]
[394500262,1763638239951,-151.0,0.00016986,2]
[394500263,1763638239961,-1203.28,0.00016986,2]
[394500264,1763638239971,-1203.28,0.00016986,2]
[394500265,1763638239981,-274700.08190771,0.00016986,2]
[394500266,1763638239991,-615.0,0.00016986,2]
[394500267,1763638240001,-151.0,0.00016997,2]
[394500268,1763638240011,-300.0,0.00016999,2]
[394500269,1763638240022,-250.0,0.00017,2]
[394500270,1763638240031,-8868960.6415159,0.00017,2]
[394500271,1763638240399,-500.0,0.00016784,2]
[394500272,1763638240410,-501.05133945,0.00016784,2]
[394500273,1763638240420,-500.0,0.00016784,2]
[394500274,1763638240429,-619.72589886,0.00016784,2]
[394500275,1763638240439,-500.0,0.00016784,2]
[394500276,1763638240448,-500.0,0.00016784,2]
[394500277,1763638240458,-213.59569935,0.00016784,2]
[394500278,1763638240468,-500.0,0.00016784,2]
[394500279,1763638240478,-500.0,0.00016784,2]
[394500280,1763638240487,-500.0,0.00016784,2]
[394500281,1763638240497,-500.0,0.00016784,2]
[394500282,1763638240506,-500.0,0.00016784,2]
[394500283,1763638240517,-386.9575363,0.00016784,2]
[394500284,1763638240527,-428.074261,0.00016784,2]
[394500285,1763638240537,-216.67148651,0.00016784,2]
[394500286,1763638240546,-500.0,0.00016784,2]
[394500287,1763638240556,-500.0,0.00016784,2]
[394500288,1763638240566,-500.0,0.00016784,2]
[394500289,1763638240575,-229.79705839,0.00016784,2]
[394500290,1763638240600,-270.20294161,0.00016784,2]
[394500291,1763638240756,-293.91278273,0.00016784,2]
[394500292,1763638240773,-206.08721727,0.00016784,2]
[394500293,1763638240783,-500.0,0.00016784,2]
[394500294,1763638240794,-500.0,0.00016784,2]
[394500295,1763638240803,-500.0,0.00016784,2]
[394500296,1763638240813,-500.0,0.00016784,2]
[394500297,1763638240823,-500.0,0.00016784,2]
[394500298,1763638240832,-500.0,0.00016784,2]
[394500299,1763638240842,-500.0,0.00016784,2]
[394500300,1763638240852,-500.0,0.00016784,2]
[394500301,1763638240863,-500.0,0.00016784,2]
[394500302,1763638240873,-500.0,0.00016784,2]
[394500303,1763638240883,-500.0,0.00016784,2]
[394500304,1763638240893,-500.0,0.00016784,2]
[394500305,1763638240904,-500.0,0.00016784,2]
[394500306,1763638240914,-500.0,0.000169,2]
[394500307,1763638240925,-500.0,0.000169,2]
[394500308,1763638240935,-500.0,0.000169,2]
[394500309,1763638240944,-296.0698838,0.000169,2]
[394500310,1763638240954,-26966.58196111,0.00017,2]
[394500311,1763638240965,-500.0,0.00017,2]
[394500312,1763638241051,-544590.93998782,0.00017,2]
[394500313,1763638241063,-871.02767848,0.00017,2]
[394500314,1763638241075,-9967.17439657,0.00017,2]
[394500315,1763638241087,-446.94398386,0.00017,2]
[394500316,1763638241166,-55676.57993551,0.00017,2]
[394500317,1763638241177,-4249.61574362,0.00017,2]
[394500318,1763638241189,-18492.04635029,0.00017,2]
[394500319,1763638241200,-2754.238414,0.00017,2]
[394500320,1763638241310,-458.84863515,0.00017,2]
[394500321,1763638241322,-2072.05180528,0.00017,2]
[394500322,1763638241354,-9000.0,0.00017,2]
[394500323,1763638241365,-3441.90960667,0.00017,2]
[394500324,1763638241377,-2530.64288583,0.00017,2]
[394500325,1763638241389,-247596.04783047,0.00017,2]
[394500329,1763638243582,-2500.0,0.00016786,2]
[394500330,1763638243591,-50423.93143767,0.00017,2]
[394500331,1763638243603,-3411.37260033,0.00017,2]
[394500332,1763638243614,-3681.900821,0.00017,2]
[394500333,1763638243625,-37818.52547948,0.00017,2]
[394500334,1763638243636,-7540.35,0.00017,2]
[394500335,1763638243648,-10299.9,0.00017,2]
[394500336,1763638244329,-120077.76778928,0.00017,2]
[394500337,1763638244341,-366.36392,0.00017,2]
[394500338,1763638244352,-648.93851997,0.00017,2]
[394500339,1763638244364,-466.7936093,0.00017,2]
[394500349,1763638245946,-2919.25678843,0.00017,2]
[394500350,1763638245958,-11567.5291957,0.00017,2]
[394500351,1763638245969,-1017.12528461,0.00017,2]
[394500352,1763638245980,-103298.07471381,0.00017,2]
[394500353,1763638245992,-2158.22510503,0.00017,2]
[394500354,1763638246003,-462.70739025,0.00017,2]
[394500355,1763638246160,-4400.33003597,0.00017,2]
[394500356,1763638246172,-794.30477733,0.00017,2]
[394500357,1763638246183,-474.4368,0.00017,2]
[394500358,1763638246217,-11533.12725657,0.00017,2]
[394500359,1763638246258,-195441.73729837,0.00017,2]
[394500360,1763638246363,-556.81298057,0.00017,2]
[394500362,1763638261644,-512.49582074,0.00016389,2]
[394500367,1763638321669,-501.92771431,0.00016685,2]
[394500369,1763638336654,-393.950428,0.00016684,2]
[394500370,1763638336679,-884.81635695,0.00016685,2]
[394500371,1763638351620,-500.0,0.00016585,2]
[394500372,1763638351643,-126.14242874,0.00016685,2]
[394500373,1763638351666,-5675.82146348,0.00016685,2]
[394500374,1763638353855,-244.11466014,0.00016685,2]
[394500375,1763638358670,-168.22639144,0.00016685,2]
[394500376,1763638361995,-505.55983336,0.00016685,2]
[394500377,1763638364378,-270.25591339,0.00016685,2]
[394500378,1763638365855,-300.0,0.00016685,2]
[394500379,1763638420414,500.0,0.00042027,120]
[394500380,1763638420645,500.0,0.00042027,120]
[394500381,1763638421023,500.0,0.00042027,120]
[394500382,1763638421160,500.0,0.00042027,120]
[394500383,1763638421400,500.0,0.00042027,120]
[394500384,1763638421865,500.0,0.00042027,120]
[394500385,1763638422458,500.0,0.00042027,120]
[394500386,1763638422691,408.28241549,0.00042027,120]
[394500387,1763638425089,200.56,0.00017,4]
[394500388,1763638427164,-229.74408661,0.00016585,2]
[394500389,1763638430220,-246.75246874,0.00016585,2]
[394500390,1763638431839,-211.53658683,0.00016585,2]
[394500391,1763638457316,-99.86771382,0.00016585,2]
[394500392,1763638457339,-76.23253496,0.00016585,2]
[394500393,1763638460489,-517.94042873,0.00016585,2]
[394500394,1763638463135,-175.0,0.00016585,2]
[394500395,1763638465274,-300.0,0.00016585,2]
[394500396,1763638467945,-200.0,0.00016585,2]
[394500397,1763638470121,-265.89224303,0.00016585,2]
[394500398,1763638470750,14314.0,0.00042027,30]
[394500399,1763638473302,-241.44880855,0.00016585,2]
[394500400,1763638479757,-176.35,0.00016585,2]
[394500401,1763638481218,-210.90862138,0.00016585,2]
[394500402,1763638482052,299.99,0.00016893,4]
[394500403,1763638484935,-230.58399704,0.00016585,2]
[394500404,1763638489160,-204.31523594,0.00016585,2]
[394500405,1763638490867,-215.54372186,0.00016585,2]
[394500406,1763638492326,-357.33975784,0.00016585,2]
[394500407,1763638496152,-204.55606878,0.00016585,2]
[394500408,1763638497870,-452.3746057,0.00016585,2]
[394500409,1763638501228,-216.60176433,0.00016585,2]
[394500410,1763638502881,-263.84540764,0.00016585,2]
[394500411,1763638504672,-234.04578,0.00016585,2]
[394500412,1763638507558,-330.80203976,0.00016585,2]
[394500413,1763638509585,-323.24769388,0.00016585,2]
[394500414,1763638512688,-1000.52909019,0.00016585,2]
[394500415,1763638512715,-411.13746789,0.00016585,2]
[394500416,1763638553365,250.0,0.00016037,2]
[394500417,1763638558893,-157.32703553,0.00016585,2]
[394500418,1763638558925,-42.67296447,0.00016585,2]
[394500419,1763638560873,-168.63131779,0.00016585,2]
[394500420,1763638607279,-190.89097065,0.00016585,2]
[394500421,1763638607301,-79.4428474,0.00016585,2]
[394500422,1763638691584,1903.81,0.00015928,2]
[394500423,1763638715715,165.52,0.00012757,2]
[394500433,1763639025376,252.50180802,0.00041953,120]
[394500438,1763639101702,-286.38600108,0.00016485,2]
[394500440,1763639116648,-152.57913476,0.00016485,2]
[394500441,1763639116673,-127.89911051,0.00016535,2]
[394500442,1763639119209,-155.565573,0.00016535,2]
[394500446,1763639185149,516.96,7.905e-05,2]
[394500447,1763639185358,516.96,8.321e-05,2]
[394500448,1763639185555,516.96,8.738e-05,2]
[394500449,1763639186102,516.96,9.154e-05,2]
[394500450,1763639186324,516.96,9.57e-05,2]
[394500451,1763639186666,516.96,9.986e-05,2]
[394500452,1763639186860,516.96,0.00010402,2]
[394500453,1763639187104,516.96,0.00010818,2]
[394500454,1763639187325,516.96,0.00011234,2]
[394500455,1763639187527,516.96,0.0001165,2]
[394500456,1763639187730,516.96,0.00012066,2]
[394500457,1763639187923,516.96,0.00012482,2]
[394500458,1763639188136,516.96,0.00012898,2]
[394500459,1763639188558,516.96,0.00013314,2]
[394500460,1763639188760,516.96,0.00013731,2]
[394500461,1763639188962,176.28,0.00014147,2]
[394500462,1763639188986,340.68,0.00014147,2]
[394500463,1763639189232,516.96,0.00014563,2]
[394500464,1763639189421,516.96,0.00014979,2]
[394500465,1763639189614,516.96,0.00015395,2]
[394500466,1763639189812,516.96,0.00015811,2]
[394500470,1763639223644,300.0,0.000168,6]
[394500471,1763639225743,700.0,0.000169,6]
[394500473,1763639243501,4279.85051219,0.00012066,2]
[394500474,1763639279149,5720.15948781,0.00015857,2]
[394500475,1763639279171,4445.48051219,0.00015857,2]
[394500476,1763639311647,-67.47980207,0.00016535,2]
[394500477,1763639311670,-179.67915864,0.00016547,2]
[394500478,1763639313672,-120.32084136,0.00016547,2]
[394500479,1763639313700,-37.65260497,0.00016559,2]
[394500480,1763639356623,-162.34739503,0.00016559,2]
[394500481,1763639356649,-137.65260497,0.00016561,2]
[394500482,1763639358752,-128.23963806,0.00016561,2]
[394500483,1763639358779,-134.04949848,0.00016563,2]
[394500484,1763639386427,318.499639,0.00041953,120]
[394500485,1763639392984,1500.0,0.00015874,2]
[394500486,1763639394147,-237.49539685,0.00016485,2]
[394500487,1763639395667,-192.43272622,0.00016485,2]
[394500488,1763639397768,-435.72796336,0.00016485,2]
[394500489,1763639399805,-240.86253462,0.00016485,2]
[394500490,1763639402290,-300.0,0.00016484,2]
[394500491,1763639402314,-66.06776105,0.00016484,2]
[394500492,1763639403522,2072.98,0.00015865,2]
[394500493,1763639404520,-311.58306105,0.00016484,2]
[394500494,1763639407088,-183.82122545,0.00016475,2]
[394500495,1763639409274,-280.2144,0.00016475,2]
[394500496,1763639411263,-156.96365983,0.00016475,2]
[394500497,1763639413328,-321.82934531,0.00016475,2]
[394500498,1763639416924,-195.0,0.00016475,2]
[394500499,1763639419147,-208.01099995,0.00016463,2]
[394500500,1763639421262,-198.52105318,0.00016463,2]
[394500501,1763639423308,-180.40295554,0.00016463,2]
[394500502,1763639426719,-500.0,0.00016463,2]
[394500503,1763639429264,-317.72655367,0.00016463,2]
[394500504,1763639430799,-200.60351421,0.00016463,2]
[394500512,1763639432093,-302.19,0.00016463,2]
[394500513,1763639432206,-4777.91236209,0.00016463,2]
[394500514,1763639432223,-822.3491779,0.00016484,2]
[394500515,1763639432235,-300.0,0.00016484,2]
[394500516,1763639432249,-184127.03215016,0.00016485,2]
[394500517,1763639432264,-18898.01827462,0.00016485,2]
[394500520,1763639433473,-304.751249,0.00016485,2]
[394500521,1763639435728,-266.99466597,0.00016484,2]
[394500532,1763639438082,-155.79153053,0.00016463,2]
[394500533,1763639438111,-97.04950876,0.00016484,2]
[394500534,1763639438149,-135.95582527,0.00016484,2]
[394500535,1763639438160,-500.0,0.00016484,2]
[394500536,1763639438171,-158.67491789,0.00016484,2]
[394500537,1763639438183,-292.06215603,0.00016484,2]
[394500538,1763639438193,-500.0,0.00016484,2]
[394500539,1763639438205,-500.0,0.00016484,2]
[394500540,1763639438217,-500.0,0.00016484,2]
[394500541,1763639438229,-283.30710081,0.00016484,2]
[394500577,1763639440027,-216.69289919,0.00016484,2]
[394500578,1763639440038,-500.0,0.00016484,2]
[394500580,1763639440049,-500.0,0.00016484,2]
[394500581,1763639440060,-366.37506906,0.00016484,2]
[394500582,1763639440073,-133.62493094,0.00016484,2]
[394500583,1763639440084,-500.0,0.00016484,2]
[394500584,1763639440094,-500.0,0.00016484,2]
[394500585,1763639440106,-544.71083735,0.00016484,2]
[394500586,1763639440117,-500.0,0.00016484,2]
[394500587,1763639440128,-500.0,0.00016484,2]
[394500588,1763639440143,-500.0,0.00016484,2]
[394500589,1763639440153,-500.0,0.00016484,2]
[394500590,1763639440164,-500.0,0.00016484,2]
[394500591,1763639440175,-500.0,0.00016484,2]
[394500592,1763639440186,-500.0,0.00016484,2]
[394500593,1763639440198,-92.63994601,0.00016484,2]
[394500594,1763639440211,-407.36005399,0.00016484,2]
[394500597,1763639440465,-500.0,0.00016484,2]
[394500598,1763639440488,-500.0,0.00016484,2]
[394500599,1763639440500,-500.0,0.00016484,2]
[394500600,1763639440510,-500.0,0.00016484,2]
[394500601,1763639440520,-500.0,0.00016484,2]
[394500602,1763639440530,-500.0,0.00016484,2]
[394500603,1763639440540,-500.0,0.00016484,2]
[394500604,1763639440550,-500.0,0.00016484,2]
[394500605,1763639440560,-500.0,0.00016484,2]
[394500606,1763639440569,-500.0,0.00016484,2]
[394500607,1763639440578,-500.0,0.00016484,2]
[394500608,1763639440588,-500.0,0.00016484,2]
[394500609,1763639440598,-500.0,0.00016484,2]
[394500611,1763639440608,-500.0,0.00016484,2]
[394500613,1763639440618,-500.0,0.00016484,2]
[394500615,1763639440629,-500.0,0.00016484,2]
[394500617,1763639440638,-500.0,0.00016484,2]
[394500619,1763639440649,-500.0,0.00016484,2]
[394500621,1763639440659,-500.0,0.00016484,2]
[394500623,1763639440668,-500.0,0.00016484,2]
[394500625,1763639440678,-500.0,0.00016484,2]
[394500628,1763639440688,-500.0,0.00016484,2]
[394500630,1763639440698,-500.0,0.00016484,2]
[394500632,1763639440707,-500.0,0.00016484,2]
[394500634,1763639440717,-500.0,0.00016484,2]
[394500636,1763639440726,-500.0,0.00016484,2]
[394500638,1763639440736,-500.0,0.00016484,2]
[394500640,1763639440745,-500.0,0.00016484,2]
[394500642,1763639440755,-500.0,0.00016484,2]
[394500644,1763639440765,-500.0,0.00016484,2]
[394500646,1763639440774,-500.0,0.00016484,2]
[394500648,1763639440784,-500.0,0.00016484,2]
[394500650,1763639440793,-500.0,0.00016484,2]
[394500652,1763639440804,-500.0,0.00016484,2]
[394500654,1763639440813,-41560.23334964,0.00016485,2]
[394500656,1763639441638,-1.7e-07,0.00016485,2]
[394500657,1763639441650,-5045.37,0.00016485,2]
[394500658,1763639441688,-195.0,0.00016485,2]
[394500659,1763639441702,-2718.80445789,0.00016485,2]
[394500660,1763639441713,-459.00494927,0.00016485,2]
[394500661,1763639442750,-336.1284232,0.00016485,2]
[394500676,1763639443843,-3994.62629436,0.00016485,2]
[394500677,1763639443898,-4122.76392,0.00016485,2]
[394500678,1763639444843,-164.7149185,0.00016485,2]
[394500689,1763639446518,-503.11537298,0.00016485,2]
[394500690,1763639450286,-152.55828003,0.00016485,2]
[394500691,1763639452939,-186.16852144,0.00016485,2]
[394500692,1763639455586,-499.55828003,0.00016485,2]
[394500693,1763639457186,-188.40401187,0.00016485,2]
[394500694,1763639460406,-449.55828003,0.00016484,2]
[394500695,1763639462974,-300.0,0.00016484,2]
[394500696,1763639462995,-200.0,0.00016484,2]
[394500697,1763639465167,-350.0,0.00016484,2]
[394500698,1763639465196,-95.0,0.00016484,2]
[394500699,1763639466454,-252.61165737,0.00016484,2]
[394500700,1763639466481,-51.60042929,0.00016484,2]
[394500701,1763639468617,-173.53396456,0.00016484,2]
[394500702,1763639469524,444.67,0.00013699,2]
[394500703,1763639470369,-326.46603544,0.00016484,2]
[394500704,1763639474929,-245.56950811,0.00016484,2]
[394500705,1763639474955,-4.45669486,0.00016484,2]
[394500706,1763639479586,-258.42681997,0.00016484,2]
[394500707,1763639501345,1421.56,0.0001589,2]
[394500708,1763639521760,-243.16836917,0.00016435,2]
[394500710,1763639582179,-256.83163083,0.00016435,2]
[394500711,1763639582208,-4.99879017,0.00016444,2]
[394500712,1763639584572,-374.89545398,0.00016444,2]
[394500713,1763639584764,1069.75936647,0.00016484,5]
[394500715,1763639628016,-0.12177905,0.00016444,2]
[394500716,1763639628039,-299.87822095,0.00016444,2]
[394500717,1763639630088,-380.67971201,0.00016444,2]
[394500718,1763639633793,-291.84604384,0.00016444,2]
[394500719,1763639636187,-302.0,0.00016444,2]
[394500720,1763639655942,2418.06,0.00041953,30]
[394500721,1763639684374,161.54,0.00015868,2]
[394500722,1763639692612,10000.0,0.00041953,120]
[394500723,1763639703162,509.0,0.000155,2]
[394500724,1763639707505,3240.138547,7.945e-05,2]
[394500725,1763639745210,200.0,0.00015808,2]
[394500726,1763639747815,-332.40042451,0.00016385,2]
[394500727,1763639749833,-167.59957549,0.00016385,2]
[394500728,1763639788073,879.2,0.00015788,2]
[394500732,1763639818064,200.0,0.00015788,2]
[394500801,1763640133615,222.41932101,0.00016195,2]
[394500802,1763640149008,150.0,0.00015761,2]
[394500833,1763640202183,999.0,0.00015761,3]
[394500853,1763640218884,203.42681997,0.00016284,2]
[394500854,1763640223677,10000.0,0.00041953,120]
[394500855,1763640226364,150.0,0.00015751,2]
[394500865,1763640239167,1791.63701662,0.00041953,30]
[394500872,1763640263809,534.88160466,0.00041953,120]
[394500877,1763640385610,8647.58318003,0.00016285,2]
[394500878,1763640385645,10000.01,0.00016285,2]
[394500879,1763640385672,10000.01,0.00016285,2]
[394500880,1763640385699,10000.01,0.00016285,2]
[394500881,1763640385724,10000.01,0.00016285,2]
[394500882,1763640385750,10000.01,0.00016285,2]
[394500883,1763640385777,10000.01,0.00016285,2]
[394500884,1763640385802,10000.01,0.00016285,2]
[394500885,1763640385827,10000.01,0.00016285,2]
[394500886,1763640385852,10000.01,0.00016285,2]
[394500887,1763640392129,-500.0,0.00016284,2]
[394500888,1763640392157,-500.0,0.00016284,2]
[394500889,1763640392186,-554.24199268,0.00016284,2]
[394500891,1763640392216,-500.0,0.00016284,2]
[394500894,1763640392248,-500.0,0.00016284,2]
[394500896,1763640392277,-500.0,0.00016284,2]
[394500898,1763640392306,-445.75800732,0.00016284,2]
[394500899,1763640392350,-500.0,0.00016284,2]
[394500900,1763640392379,-205.13397946,0.00016284,2]
[394500901,1763640392411,-500.0,0.00016284,2]
[394500902,1763640392443,-89.74204108,0.00016284,2]
[394500903,1763640393116,-410.25795892,0.00016284,2]
[394500904,1763640393148,-500.0,0.00016284,2]
[394500905,1763640393179,-500.0,0.00016284,2]